[Event "*** SCC Grand Prix: Titled Tuesday Blitz"]
[Site "Chess.com"]
[Date "2020.07.21"]
[Round "4"]
[White "Matveev_Vladimir"]
[Black "Crazy_girl99"]
[Result "1-0"]
[WhiteElo "2670"]
[BlackElo "2479"]
[TimeControl "180+1"]
[EndTime "10:38:21 PDT"]
[Termination "Matveev_Vladimir won on time"]

1. d4 {[%clk 0:03:00.9]} 1... d5 {[%clk 0:02:58.3]} 2. c4 {[%clk 0:03:00.6]}
2... e6 {[%clk 0:02:58.5]} 3. Nf3 {[%clk 0:02:59.5]} 3... Nf6 {[%clk 0:02:58.1]}
4. g3 {[%clk 0:02:58.8]} 4... dxc4 {[%clk 0:02:55.2]} 5. Bg2 {[%clk 0:02:58.2]}
5... a6 {[%clk 0:02:55.5]} 6. O-O {[%clk 0:02:57.9]} 6... Nc6 {[%clk 0:02:55.4]}
7. e3 {[%clk 0:02:57.3]} 7... Bd6 {[%clk 0:02:47.8]} 8. Nfd2 {[%clk 0:02:55.6]}
8... O-O {[%clk 0:02:39.7]} 9. Nxc4 {[%clk 0:02:55.2]} 9... Qe7 {[%clk
0:02:39.9]} 10. Nc3 {[%clk 0:02:38.2]} 10... e5 {[%clk 0:02:33.7]} 11. d5 {[%clk
0:02:15.6]} 11... Nb8 {[%clk 0:02:32.7]} 12. Nxd6 {[%clk 0:02:10.7]} 12... cxd6
{[%clk 0:02:29]} 13. e4 {[%clk 0:02:09.1]} 13... Nbd7 {[%clk 0:02:20.7]} 14. Be3
{[%clk 0:02:06.3]} 14... b5 {[%clk 0:02:12.6]} 15. b4 {[%clk 0:01:46]} 15... a5
{[%clk 0:01:25.5]} 16. a3 {[%clk 0:01:28.4]} 16... Ba6 {[%clk 0:01:25.3]} 17.
Re1 {[%clk 0:01:23.8]} 17... Rfc8 {[%clk 0:01:24.4]} 18. Rc1 {[%clk 0:01:06.9]}
18... Qd8 {[%clk 0:01:23.5]} 19. Bh3 {[%clk 0:01:03.8]} 19... Rc4 {[%clk
0:01:21.5]} 20. Bf1 {[%clk 0:00:56.9]} 20... Rcc8 {[%clk 0:01:15.6]} 21. Nxb5
{[%clk 0:00:50.3]} 21... Nxe4 {[%clk 0:01:01.5]} 22. Na7 {[%clk 0:00:37.5]}
22... Rxc1 {[%clk 0:00:37.1]} 23. Qxc1 {[%clk 0:00:33.3]} 23... Bxf1 {[%clk
0:00:36.2]} 24. Rxf1 {[%clk 0:00:28.7]} 24... axb4 {[%clk 0:00:34.9]} 25. axb4
{[%clk 0:00:29.6]} 25... Nef6 {[%clk 0:00:17.2]} 26. Qc6 {[%clk 0:00:23.4]}
26... Nf8 {[%clk 0:00:09]} 27. b5 {[%clk 0:00:19.4]} 27... Rb8 {[%clk
0:00:09.2]} 28. b6 {[%clk 0:00:19.5]} 28... Qd7 {[%clk 0:00:08.7]} 29. Rb1
{[%clk 0:00:18.2]} 29... Rb7 {[%clk 0:00:07.9]} 30. Nb5 {[%clk 0:00:14.6]} 30...
Ne4 {[%clk 0:00:05.5]} 31. f3 {[%clk 0:00:13.3]} 31... Nc5 {[%clk 0:00:03.2]}
32. Nxd6 {[%clk 0:00:12.5]} 1-0

[Event "*** SCC Grand Prix: Titled Tuesday Blitz"]
[Site "Chess.com"]
[Date "2020.07.21"]
[Round "4"]
[White "Spartakus1975"]
[Black "Agnes66678"]
[Result "1/2-1/2"]
[WhiteElo "2650"]
[BlackElo "2480"]
[TimeControl "180+1"]
[EndTime "10:38:21 PDT"]
[Termination "Game drawn by agreement"]

1. e4 {[%clk 0:03:00.9]} 1... e5 {[%clk 0:02:57.7]} 2. Nf3 {[%clk 0:02:59.7]}
2... Nf6 {[%clk 0:02:57.7]} 3. Nxe5 {[%clk 0:02:56.3]} 3... Nxe4 {[%clk
0:02:57.4]} 4. Qe2 {[%clk 0:02:55.4]} 4... Qe7 {[%clk 0:02:56.3]} 5. Qxe4 {[%clk
0:02:55.3]} 5... d6 {[%clk 0:02:56.3]} 6. d4 {[%clk 0:02:55.7]} 6... dxe5 {[%clk
0:02:55.9]} 7. dxe5 {[%clk 0:02:53.5]} 7... Nc6 {[%clk 0:02:55.8]} 8. Bf4 {[%clk
0:02:46.5]} 8... g5 {[%clk 0:02:54.4]} 9. Bg3 {[%clk 0:02:43.6]} 9... f5 {[%clk
0:02:54.2]} 10. Qa4 {[%clk 0:02:27.9]} 10... f4 {[%clk 0:02:53.7]} 11. Bxf4
{[%clk 0:02:25.3]} 11... gxf4 {[%clk 0:02:53.3]} 12. Qxf4 {[%clk 0:02:25.9]}
12... Qxe5+ {[%clk 0:02:53.3]} 13. Qxe5+ {[%clk 0:02:25.4]} 13... Nxe5 {[%clk
0:02:54.2]} 14. Nd2 {[%clk 0:02:21.7]} 14... Bf5 {[%clk 0:02:52]} 15. O-O-O
{[%clk 0:02:21.1]} 15... O-O-O {[%clk 0:02:52.1]} 16. h3 {[%clk 0:02:05.1]}
16... Bh6 {[%clk 0:02:51.8]} 17. Be2 {[%clk 0:01:57.8]} 17... Rd6 {[%clk
0:02:42.5]} 18. g3 {[%clk 0:01:56.1]} 18... Be4 {[%clk 0:02:32.3]} 19. f4 {[%clk
0:01:38.7]} 19... Bxh1 {[%clk 0:02:31.6]} 20. Rxh1 {[%clk 0:01:38.8]} 20... Nc6
{[%clk 0:02:24.9]} 21. Ne4 {[%clk 0:01:36.3]} 21... Rd4 {[%clk 0:02:15]} 22. Nc5
{[%clk 0:01:34.5]} 22... b6 {[%clk 0:02:06.6]} 23. Ne6 {[%clk 0:01:24.5]} 23...
Re4 {[%clk 0:01:56.4]} 24. Bg4 {[%clk 0:01:23]} 24... Kb7 {[%clk 0:01:56.1]} 25.
h4 {[%clk 0:01:12.1]} 25... Re8 {[%clk 0:01:54.2]} 26. Ng5 {[%clk 0:01:12.2]}
26... Re1+ {[%clk 0:01:52.8]} 27. Rxe1 {[%clk 0:01:11.5]} 27... Rxe1+ {[%clk
0:01:53.7]} 28. Kd2 {[%clk 0:01:12.3]} 28... Rg1 {[%clk 0:01:49.1]} 29. Ne4
{[%clk 0:01:12.2]} 29... Rxg3 {[%clk 0:01:42.7]} 30. Nxg3 {[%clk 0:01:09.5]}
30... Bxf4+ {[%clk 0:01:43]} 31. Ke2 {[%clk 0:01:06]} 31... Bxg3 {[%clk
0:01:43.9]} 32. h5 {[%clk 0:01:06.5]} 32... h6 {[%clk 0:01:42.5]} 33. Kf3 {[%clk
0:01:01.3]} 33... Be5 {[%clk 0:01:41.7]} 34. c3 {[%clk 0:01:01.7]} 34... Bf6
{[%clk 0:01:41.3]} 35. Ke4 {[%clk 0:01:01.4]} 35... b5 {[%clk 0:01:40.3]} 36.
Kf5 {[%clk 0:01:00.1]} 36... Bg5 {[%clk 0:01:40]} 37. Bf3 {[%clk 0:00:57.7]}
37... Kb6 {[%clk 0:01:40]} 38. Ke6 {[%clk 0:00:57.3]} 38... Na5 {[%clk
0:01:39.1]} 39. b3 {[%clk 0:00:54.4]} 39... c5 {[%clk 0:01:39.1]} 40. Bd5 {[%clk
0:00:50]} 40... Nc6 {[%clk 0:01:33.3]} 41. Kd6 {[%clk 0:00:46.8]} 41... Ne7
{[%clk 0:01:33]} 42. Be4 {[%clk 0:00:45.4]} 42... a5 {[%clk 0:01:30.2]} 43. a4
{[%clk 0:00:40.8]} 43... Nc8+ {[%clk 0:01:20]} 44. Kd7 {[%clk 0:00:38.8]} 44...
Na7 {[%clk 0:01:18.8]} 45. c4 {[%clk 0:00:35.1]} 45... b4 {[%clk 0:01:10.2]} 46.
Bd5 {[%clk 0:00:33]} 46... Bf4 {[%clk 0:01:01]} 47. Be4 {[%clk 0:00:31.2]} 47...
Bd2 {[%clk 0:00:52.9]} 48. Bd5 {[%clk 0:00:31.1]} 48... Be1 {[%clk 0:00:51.7]}
49. Be4 {[%clk 0:00:30.9]} 49... Bg3 {[%clk 0:00:52.6]} 50. Bd5 {[%clk
0:00:30.7]} 50... Be5 {[%clk 0:00:51.1]} 51. Be4 {[%clk 0:00:30.5]} 51... Ka6
{[%clk 0:00:50.5]} 52. Bd5 {[%clk 0:00:30.1]} 52... Bf4 {[%clk 0:00:45.2]} 53.
Be4 {[%clk 0:00:29.9]} 1/2-1/2

[Event "*** SCC Grand Prix: Titled Tuesday Blitz"]
[Site "Chess.com"]
[Date "2020.07.21"]
[Round "4"]
[White "Dauletova"]
[Black "UCantHandleDenker"]
[Result "1/2-1/2"]
[WhiteElo "2324"]
[BlackElo "2550"]
[TimeControl "180+1"]
[EndTime "10:38:21 PDT"]
[Termination "Game drawn by repetition"]

1. e4 {[%clk 0:03:00.9]} 1... d6 {[%clk 0:02:58]} 2. d4 {[%clk 0:03:00.6]} 2...
Nf6 {[%clk 0:02:57.5]} 3. Nc3 {[%clk 0:03:01.1]} 3... g6 {[%clk 0:02:57]} 4. f4
{[%clk 0:03:01.1]} 4... Bg7 {[%clk 0:02:56.5]} 5. Bd3 {[%clk 0:03:01.7]} 5...
O-O {[%clk 0:02:47.4]} 6. Nf3 {[%clk 0:03:01.6]} 6... Na6 {[%clk 0:02:46.4]} 7.
a3 {[%clk 0:02:54.5]} 7... c5 {[%clk 0:02:44]} 8. d5 {[%clk 0:02:52.5]} 8... Bg4
{[%clk 0:02:34.5]} 9. h3 {[%clk 0:02:44.2]} 9... Bxf3 {[%clk 0:02:33.7]} 10.
Qxf3 {[%clk 0:02:45.1]} 10... Nc7 {[%clk 0:02:30]} 11. O-O {[%clk 0:02:40.7]}
11... Rb8 {[%clk 0:02:23.5]} 12. a4 {[%clk 0:02:27.8]} 12... a6 {[%clk
0:02:19.8]} 13. a5 {[%clk 0:01:47.2]} 13... b5 {[%clk 0:02:14.6]} 14. axb6
{[%clk 0:01:46.8]} 14... Rxb6 {[%clk 0:02:14.6]} 15. Bc4 {[%clk 0:01:36.6]}
15... Nb5 {[%clk 0:02:11.2]} 16. Qd3 {[%clk 0:01:11.2]} 16... Nd7 {[%clk
0:02:01.4]} 17. Nxb5 {[%clk 0:01:00.8]} 17... axb5 {[%clk 0:02:00.5]} 18. Bxb5
{[%clk 0:01:01.2]} 18... Qc7 {[%clk 0:01:46.1]} 19. c4 {[%clk 0:00:42.8]} 19...
Bd4+ {[%clk 0:01:26.9]} 20. Kh1 {[%clk 0:00:42.6]} 20... Rb7 {[%clk 0:01:27.4]}
21. Ra6 {[%clk 0:00:36.2]} 21... Ra7 {[%clk 0:01:23.1]} 22. b4 {[%clk
0:00:16.5]} 22... Rfa8 {[%clk 0:01:18.7]} 23. Rxa7 {[%clk 0:00:16.1]} 23... Rxa7
{[%clk 0:01:16.7]} 24. bxc5 {[%clk 0:00:15.9]} 24... Bxc5 {[%clk 0:01:13.5]} 25.
Bb2 {[%clk 0:00:13.4]} 25... f6 {[%clk 0:00:43.3]} 26. Qc3 {[%clk 0:00:13.2]}
26... Nf8 {[%clk 0:00:21.9]} 27. e5 {[%clk 0:00:12.8]} 27... dxe5 {[%clk
0:00:19.3]} 28. fxe5 {[%clk 0:00:13.7]} 28... Qxe5 {[%clk 0:00:19.5]} 29. Qxe5
{[%clk 0:00:12.8]} 29... fxe5 {[%clk 0:00:20.4]} 30. Bxe5 {[%clk 0:00:13.2]}
30... Ra2 {[%clk 0:00:18.4]} 31. Be8 {[%clk 0:00:12.7]} 31... h5 {[%clk
0:00:14.1]} 32. Bf7+ {[%clk 0:00:12]} 32... Kh7 {[%clk 0:00:14.4]} 33. Be8
{[%clk 0:00:11.3]} 33... Kg8 {[%clk 0:00:13.8]} 34. Bf7+ {[%clk 0:00:10.8]}
34... Kh7 {[%clk 0:00:14.1]} 35. Be8 {[%clk 0:00:10.4]} 35... Kg8 {[%clk
0:00:14.7]} 1/2-1/2

[Event "*** SCC Grand Prix: Titled Tuesday Blitz"]
[Site "Chess.com"]
[Date "2020.07.21"]
[Round "4"]
[White "Sn00pPawn"]
[Black "mirochka"]
[Result "1-0"]
[WhiteElo "1797"]
[BlackElo "2147"]
[TimeControl "180+1"]
[EndTime "10:38:22 PDT"]
[Termination "Sn00pPawn won on time"]

1. e4 {[%clk 0:03:00.9]} 1... c5 {[%clk 0:02:59.2]} 2. Nf3 {[%clk 0:02:59.9]}
2... Nc6 {[%clk 0:02:59.7]} 3. Bb5 {[%clk 0:02:58.8]} 3... e6 {[%clk 0:02:55.1]}
4. c3 {[%clk 0:02:54.1]} 4... Nge7 {[%clk 0:02:43.7]} 5. O-O {[%clk 0:02:53.2]}
5... a6 {[%clk 0:02:36.7]} 6. Ba4 {[%clk 0:02:42.5]} 6... b5 {[%clk 0:02:35.6]}
7. Bc2 {[%clk 0:02:42.1]} 7... d5 {[%clk 0:02:24.6]} 8. d4 {[%clk 0:02:22.7]}
8... cxd4 {[%clk 0:02:12.8]} 9. Nxd4 {[%clk 0:02:13.6]} 9... Bb7 {[%clk
0:02:07.9]} 10. Nb3 {[%clk 0:01:57.5]} 10... dxe4 {[%clk 0:01:26.8]} 11. Nc5
{[%clk 0:01:40.8]} 11... Qb6 {[%clk 0:00:58.5]} 12. Be3 {[%clk 0:01:27.9]} 12...
Nd5 {[%clk 0:00:57.1]} 13. Nd7 {[%clk 0:00:54.7]} 13... Qc7 {[%clk 0:00:47.4]}
14. Nxf8 {[%clk 0:00:53.3]} 14... Nxe3 {[%clk 0:00:44.7]} 15. Nxe6 {[%clk
0:00:41.1]} 15... Qb6 {[%clk 0:00:41.8]} 16. Nxg7+ {[%clk 0:00:28]} 16... Kf8
{[%clk 0:00:38.6]} 17. fxe3 {[%clk 0:00:18.3]} 17... Kxg7 {[%clk 0:00:27]} 18.
Qg4+ {[%clk 0:00:15.7]} 18... Kf8 {[%clk 0:00:26.3]} 19. Qf4 {[%clk 0:00:11]}
19... Nd8 {[%clk 0:00:18.2]} 20. Nd2 {[%clk 0:00:10.3]} 20... Rg8 {[%clk
0:00:15.7]} 21. Nxe4 {[%clk 0:00:10]} 21... Qg6 {[%clk 0:00:13]} 22. Ng3 {[%clk
0:00:09.2]} 22... Rc8 {[%clk 0:00:09.5]} 23. Bxg6 {[%clk 0:00:08.6]} 23... Rxg6
{[%clk 0:00:09]} 24. Rad1 {[%clk 0:00:08.6]} 24... f6 {[%clk 0:00:05.4]} 25. e4
{[%clk 0:00:06.4]} 25... Ne6 {[%clk 0:00:04.1]} 26. Qd6+ {[%clk 0:00:06]} 26...
Kf7 {[%clk 0:00:03.9]} 27. e5 {[%clk 0:00:06.5]} 27... Rd8 {[%clk 0:00:02.1]}
28. Qb6 {[%clk 0:00:04.6]} 1-0

[Event "*** SCC Grand Prix: Titled Tuesday Blitz"]
[Site "Chess.com"]
[Date "2020.07.21"]
[Round "4"]
[White "WeAintSurePal"]
[Black "LastHeroJr"]
[Result "1-0"]
[WhiteElo "2292"]
[BlackElo "2430"]
[TimeControl "180+1"]
[EndTime "10:38:25 PDT"]
[Termination "WeAintSurePal won by resignation"]

1. d4 {[%clk 0:03:00.9]} 1... Nf6 {[%clk 0:02:59.6]} 2. Bf4 {[%clk 0:03:00.2]}
2... g6 {[%clk 0:02:59.7]} 3. e3 {[%clk 0:03:00.7]} 3... Bg7 {[%clk 0:03:00.1]}
4. Nd2 {[%clk 0:02:59.7]} 4... O-O {[%clk 0:03:00.1]} 5. c3 {[%clk 0:02:59.9]}
5... d6 {[%clk 0:02:59.4]} 6. Ngf3 {[%clk 0:02:54.4]} 6... b6 {[%clk 0:02:53.5]}
7. a4 {[%clk 0:02:51.7]} 7... a5 {[%clk 0:02:53]} 8. Bc4 {[%clk 0:02:49.6]} 8...
Bb7 {[%clk 0:02:53]} 9. O-O {[%clk 0:02:48.6]} 9... Nbd7 {[%clk 0:02:53.4]} 10.
h3 {[%clk 0:02:48.4]} 10... Qe8 {[%clk 0:02:53.7]} 11. Bh2 {[%clk 0:02:30.5]}
11... e5 {[%clk 0:02:53.1]} 12. dxe5 {[%clk 0:02:31.4]} 12... dxe5 {[%clk
0:02:53.9]} 13. Qe2 {[%clk 0:02:21.9]} 13... Qe7 {[%clk 0:02:50.3]} 14. Rfd1
{[%clk 0:02:18.9]} 14... Rad8 {[%clk 0:02:47.4]} 15. e4 {[%clk 0:02:17.5]} 15...
Nh5 {[%clk 0:02:47]} 16. Bd5 {[%clk 0:02:13.3]} 16... c6 {[%clk 0:02:36]} 17.
Bc4 {[%clk 0:02:06.7]} 17... Nf4 {[%clk 0:02:35.9]} 18. Bxf4 {[%clk 0:02:05.8]}
18... exf4 {[%clk 0:02:36.8]} 19. Nb3 {[%clk 0:02:04.2]} 19... Ne5 {[%clk
0:02:31.9]} 20. Nxe5 {[%clk 0:02:03.3]} 20... Bxe5 {[%clk 0:02:31.1]} 21. Rxd8
{[%clk 0:02:00.9]} 21... Rxd8 {[%clk 0:02:32]} 22. Rd1 {[%clk 0:02:01.2]} 22...
Bc8 {[%clk 0:02:19.8]} 23. Nd4 {[%clk 0:01:56.1]} 23... Rd6 {[%clk 0:01:08.9]}
24. Nf3 {[%clk 0:01:51.9]} 24... Qd8 {[%clk 0:00:51.4]} 25. Rxd6 {[%clk
0:01:46.3]} 25... Bxd6 {[%clk 0:00:30.4]} 26. e5 {[%clk 0:01:41.9]} 26... Bc5
{[%clk 0:00:25.7]} 27. e6 {[%clk 0:01:41.6]} 27... Bxe6 {[%clk 0:00:17.9]} 28.
Bxe6 {[%clk 0:01:41.1]} 28... fxe6 {[%clk 0:00:18.8]} 29. Qxe6+ {[%clk
0:01:40.9]} 29... Kf8 {[%clk 0:00:12.4]} 30. Ne5 {[%clk 0:01:33]} 30... Kg7
{[%clk 0:00:09.4]} 31. Qf7+ {[%clk 0:01:31.6]} 31... Kh8 {[%clk 0:00:09]} 32.
Qxf4 {[%clk 0:01:28.6]} 32... Kg7 {[%clk 0:00:07.7]} 33. Qf7+ {[%clk 0:01:22.7]}
33... Kh8 {[%clk 0:00:07.9]} 34. Qb7 {[%clk 0:01:07]} 34... Qd1+ {[%clk
0:00:07.4]} 35. Kh2 {[%clk 0:01:06.6]} 35... Bd6 {[%clk 0:00:07.9]} 36. Qc8+
{[%clk 0:01:03.3]} 36... Kg7 {[%clk 0:00:07.6]} 37. Qd7+ {[%clk 0:01:02.5]}
37... Kg8 {[%clk 0:00:07.4]} 38. f4 {[%clk 0:01:00.6]} 38... Qd5 {[%clk
0:00:06.1]} 39. Qd8+ {[%clk 0:00:59.3]} 39... Kg7 {[%clk 0:00:06.1]} 40. Qd7+
{[%clk 0:00:59.2]} 40... Kg8 {[%clk 0:00:06.4]} 41. Qe8+ {[%clk 0:00:54.2]}
41... Kg7 {[%clk 0:00:06.5]} 42. c4 {[%clk 0:00:49]} 42... Qd4 {[%clk
0:00:02.8]} 43. Qf7+ {[%clk 0:00:46.2]} 43... Kh6 {[%clk 0:00:03]} 44. Ng4+
{[%clk 0:00:41.6]} 1-0

[Event "*** SCC Grand Prix: Titled Tuesday Blitz"]
[Site "Chess.com"]
[Date "2020.07.21"]
[Round "4"]
[White "swimmerchess"]
[Black "FabianoCaruana"]
[Result "0-1"]
[WhiteElo "2804"]
[BlackElo "3048"]
[TimeControl "180+1"]
[EndTime "10:38:28 PDT"]
[Termination "FabianoCaruana won by resignation"]

1. e4 {[%clk 0:03:00.9]} 1... e5 {[%clk 0:02:57.1]} 2. Nf3 {[%clk 0:03:00.8]}
2... Nc6 {[%clk 0:02:56.9]} 3. Bb5 {[%clk 0:03:01.4]} 3... a6 {[%clk 0:02:57]}
4. Ba4 {[%clk 0:03:01.7]} 4... Nf6 {[%clk 0:02:57.6]} 5. O-O {[%clk 0:03:02.1]}
5... Be7 {[%clk 0:02:57.9]} 6. Re1 {[%clk 0:03:02.3]} 6... b5 {[%clk 0:02:57.3]}
7. Bb3 {[%clk 0:03:02.6]} 7... d6 {[%clk 0:02:57.8]} 8. c3 {[%clk 0:03:01.6]}
8... O-O {[%clk 0:02:58.1]} 9. h3 {[%clk 0:03:01.8]} 9... Na5 {[%clk 0:02:57.1]}
10. Bc2 {[%clk 0:03:02]} 10... c5 {[%clk 0:02:57.7]} 11. d4 {[%clk 0:03:02.5]}
11... Nd7 {[%clk 0:02:58.4]} 12. Nbd2 {[%clk 0:03:02.5]} 12... exd4 {[%clk
0:02:55.6]} 13. cxd4 {[%clk 0:03:03.4]} 13... Nc6 {[%clk 0:02:56.2]} 14. d5
{[%clk 0:03:04]} 14... Nce5 {[%clk 0:02:56.9]} 15. a4 {[%clk 0:03:04.4]} 15...
b4 {[%clk 0:02:54.9]} 16. Nxe5 {[%clk 0:03:04.1]} 16... Nxe5 {[%clk 0:02:55.8]}
17. f4 {[%clk 0:03:05]} 17... Ng6 {[%clk 0:02:56.1]} 18. Nc4 {[%clk 0:03:05.6]}
18... Bh4 {[%clk 0:02:48.6]} 19. Rf1 {[%clk 0:03:04.8]} 19... Bf6 {[%clk
0:02:48.9]} 20. Be3 {[%clk 0:03:03]} 20... Re8 {[%clk 0:02:47.9]} 21. Qd2 {[%clk
0:03:02.9]} 21... a5 {[%clk 0:02:47.8]} 22. Rad1 {[%clk 0:02:34.5]} 22... Ba6
{[%clk 0:02:47.2]} 23. b3 {[%clk 0:02:35]} 23... Bxc4 {[%clk 0:02:45.7]} 24.
bxc4 {[%clk 0:02:35.2]} 24... Rb8 {[%clk 0:02:33.6]} 25. Qd3 {[%clk 0:02:34]}
25... Bc3 {[%clk 0:02:27.8]} 26. g3 {[%clk 0:02:29.1]} 26... Qc7 {[%clk
0:02:22.9]} 27. h4 {[%clk 0:02:26.6]} 27... Nf8 {[%clk 0:02:19]} 28. h5 {[%clk
0:02:06]} 28... Qd7 {[%clk 0:02:18.6]} 29. Kg2 {[%clk 0:01:58.4]} 29... Re7
{[%clk 0:02:12.1]} 30. e5 {[%clk 0:01:49.2]} 30... dxe5 {[%clk 0:02:06.8]} 31.
Bxc5 {[%clk 0:01:49]} 31... e4 {[%clk 0:02:03.8]} 32. Qe3 {[%clk 0:01:45.4]}
32... Ree8 {[%clk 0:02:02.7]} 33. Bb3 {[%clk 0:01:24.8]} 33... Rbc8 {[%clk
0:01:47.3]} 34. Bb6 {[%clk 0:01:10.7]} 34... Qg4 {[%clk 0:01:40.3]} 35. c5
{[%clk 0:01:07.1]} 35... Nd7 {[%clk 0:01:36.6]} 36. Ba7 {[%clk 0:00:51]} 36...
Nf6 {[%clk 0:01:27.8]} 37. d6 {[%clk 0:00:37.5]} 37... Qd7 {[%clk 0:01:25]} 38.
Bb6 {[%clk 0:00:36]} 38... Ng4 {[%clk 0:01:17.2]} 39. Qe2 {[%clk 0:00:34.9]}
39... e3 {[%clk 0:01:17.5]} 40. Bd5 {[%clk 0:00:24.6]} 40... Nf6 {[%clk
0:00:57]} 41. Bf3 {[%clk 0:00:23.6]} 41... b3 {[%clk 0:00:51.1]} 42. g4 {[%clk
0:00:21]} 42... Bb4 {[%clk 0:00:48.7]} 43. g5 {[%clk 0:00:16.7]} 43... Ne4
{[%clk 0:00:48.4]} 44. Rd4 {[%clk 0:00:15]} 44... Nxc5 {[%clk 0:00:40.4]} 45. h6
{[%clk 0:00:10.9]} 45... Ne6 {[%clk 0:00:39.7]} 46. Re4 {[%clk 0:00:10.5]} 46...
Rc2 {[%clk 0:00:38.3]} 0-1

[Event "*** SCC Grand Prix: Titled Tuesday Blitz"]
[Site "Chess.com"]
[Date "2020.07.21"]
[Round "4"]
[White "northridgehawk"]
[Black "Azatic"]
[Result "0-1"]
[WhiteElo "2331"]
[BlackElo "2545"]
[TimeControl "180+1"]
[EndTime "10:38:30 PDT"]
[Termination "Azatic won by checkmate"]

1. e4 {[%clk 0:02:57.5]} 1... c5 {[%clk 0:03:00.1]} 2. Nf3 {[%clk 0:02:56.7]}
2... e6 {[%clk 0:03:00.5]} 3. d4 {[%clk 0:02:56.2]} 3... cxd4 {[%clk 0:03:01.4]}
4. Nxd4 {[%clk 0:02:55.2]} 4... a6 {[%clk 0:03:01.2]} 5. c4 {[%clk 0:02:55.4]}
5... Qc7 {[%clk 0:03:01.2]} 6. Nc3 {[%clk 0:02:55.7]} 6... Nf6 {[%clk
0:03:01.5]} 7. Be2 {[%clk 0:02:55.2]} 7... b6 {[%clk 0:03:01.3]} 8. O-O {[%clk
0:02:55.1]} 8... Bb7 {[%clk 0:03:01.5]} 9. Qd3 {[%clk 0:02:54]} 9... Nc6 {[%clk
0:03:01]} 10. b3 {[%clk 0:02:48.2]} 10... Nxd4 {[%clk 0:02:48.5]} 11. Qxd4
{[%clk 0:02:47.3]} 11... Bd6 {[%clk 0:02:49.4]} 12. g3 {[%clk 0:02:45.1]} 12...
h5 {[%clk 0:02:40.8]} 13. Bg5 {[%clk 0:02:39.7]} 13... Be5 {[%clk 0:01:20.4]}
14. Qe3 {[%clk 0:02:29.1]} 14... Ng4 {[%clk 0:00:58.3]} 15. Qd2 {[%clk 0:02:12]}
15... f6 {[%clk 0:00:39.2]} 16. Bxg4 {[%clk 0:02:06]} 16... hxg4 {[%clk
0:00:36.6]} 17. Be3 {[%clk 0:02:04.9]} 17... Kf7 {[%clk 0:00:26.1]} 18. Rad1
{[%clk 0:01:56]} 18... Bc6 {[%clk 0:00:13.3]} 19. h4 {[%clk 0:01:49.3]} 19...
gxh3 {[%clk 0:00:13.2]} 20. Kh2 {[%clk 0:01:48.5]} 20... Qb7 {[%clk 0:00:11.2]}
21. Nd5 {[%clk 0:01:45.8]} 21... exd5 {[%clk 0:00:10.5]} 22. exd5 {[%clk
0:01:46.7]} 22... Rae8 {[%clk 0:00:10.8]} 23. dxc6 {[%clk 0:01:41.3]} 23... dxc6
{[%clk 0:00:11.7]} 24. Qd7+ {[%clk 0:01:39.4]} 24... Qxd7 {[%clk 0:00:11.5]} 25.
Rxd7+ {[%clk 0:01:39.9]} 25... Re7 {[%clk 0:00:12]} 26. Rxe7+ {[%clk 0:01:39]}
26... Kxe7 {[%clk 0:00:12.9]} 27. Bxb6 {[%clk 0:01:39.1]} 27... g5 {[%clk
0:00:12.8]} 28. Be3 {[%clk 0:01:39.1]} 28... g4 {[%clk 0:00:13]} 29. Rd1 {[%clk
0:01:38.6]} 29... Ke6 {[%clk 0:00:12.5]} 30. Rd2 {[%clk 0:01:31.6]} 30... a5
{[%clk 0:00:12.8]} 31. Bc5 {[%clk 0:01:26.6]} 31... Ra8 {[%clk 0:00:10.3]} 32.
Re2 {[%clk 0:01:25.9]} 32... Kf5 {[%clk 0:00:10.4]} 33. Re3 {[%clk 0:01:23.3]}
33... Rb8 {[%clk 0:00:10.5]} 34. f3 {[%clk 0:01:23.2]} 34... Rd8 {[%clk
0:00:07.4]} 35. fxg4+ {[%clk 0:01:22.5]} 35... Kxg4 {[%clk 0:00:08.3]} 36. Re4+
{[%clk 0:01:22.3]} 36... Kf3 {[%clk 0:00:08]} 37. Re3+ {[%clk 0:01:10.2]} 37...
Kg4 {[%clk 0:00:08.3]} 38. Re4+ {[%clk 0:01:07.3]} 38... Kf5 {[%clk 0:00:08.6]}
39. Re2 {[%clk 0:01:04.9]} 39... Rd3 {[%clk 0:00:08.5]} 40. Bf2 {[%clk
0:01:00.8]} 40... Kg4 {[%clk 0:00:07.2]} 41. Re4+ {[%clk 0:01:00.4]} 41... Kf3
{[%clk 0:00:07]} 42. Re1 {[%clk 0:00:37.6]} 42... Kxf2 {[%clk 0:00:06.9]} 43.
Rc1 {[%clk 0:00:36.6]} 43... Rxg3 {[%clk 0:00:06.7]} 44. Rc2+ {[%clk 0:00:34.3]}
44... Kf3 {[%clk 0:00:07.2]} 45. Rc1 {[%clk 0:00:32.1]} 45... Rg2+ {[%clk
0:00:07]} 46. Kxh3 {[%clk 0:00:31.9]} 46... Rh2# {[%clk 0:00:07.4]} 0-1